Cogmind - Beta 9.6 @@@ ROGUE MODE // 2020.04.16 @ 17:22:21 Player: alice_fexa Result: Escaped! Performance ------------- Evolutions (9) 4500 Regions Visited (28) 5600 Robots Destroyed (139) 695 Value Destroyed (3752) 3752 Prototype IDs (103) 2060 Alien Tech Used (3) 600 Bonus (4771) 4771 TOTAL SCORE: 21978 Bonus ------- High Alert Combat Kills 71 Aligned with FarCom 300 Met Data Miner 300 Met Imprinter 300 Met Zhirov 300 MAIN.C Attacked Warlord 500 Win 3000 Cogmind --------- Core Integrity 1574/1600 Matter 227/300 Energy 684/700 System Corruption 0% Temperature Cool (10) Movement Flying (25) Location To Epsilon Eridani Parts ------- > --- POWER (2) -------- Vortex Chain Reactor > --- PROPULSION (5) --- Cooled Cesium-ion Thruster Cooled Field Propulsion Drive Q-thruster Q-thruster Cooled Impulse Thruster > --- UTILITY (17) ----- Lightpack 2.0 Advanced Visual Processing Unit Advanced Signal Interpreter Experimental Signal Interpreter Advanced Terrain Scan Processor Advanced Targeting Computer Improved Melee Analysis Suite Advanced Target Analyzer Improved Stasis Canceller Advanced Transmission Jammer Advanced Focal Shield Improved Hacking Suite Advanced Hacking Suite System Mapper > --- WEAPON (2) ------- Nanosword Nanosword > --- INVENTORY (24) --- Micro Fission Core Quantum Reactor Quantum Reactor Improved VTOL Module Field Propulsion Array Field Propulsion Array Field Propulsion Array Q-thruster Q-thruster Fusion Compressor Energy Well (500) Advanced Energy Well (800) Advanced Actuator Array Advanced Force Field Tiamat Missile Launcher Tiamat Missile Launcher Phasing Sabre Phasing Sabre Force Lance Force Lance Enhanced Force Lance Peak State ------------ > --- POWER ------------ Vortex Chain Reactor > --- PROPULSION ------- Cooled Cesium-ion Thruster Cooled Field Propulsion Drive Q-thruster Q-thruster Cooled Impulse Thruster > --- UTILITY ---------- Lightpack 2.0 Advanced Visual Processing Unit Advanced Signal Interpreter Experimental Signal Interpreter Advanced Terrain Scan Processor Advanced Targeting Computer Improved Melee Analysis Suite Advanced Target Analyzer Improved Stasis Canceller Advanced Transmission Jammer Advanced Focal Shield Improved Hacking Suite Advanced Hacking Suite Advanced Hacking Suite System Mapper > --- WEAPON ----------- Nanosword Nanosword > --- INVENTORY -------- Micro Fission Core Light Particle Reactor Quantum Reactor Improved VTOL Module Field Propulsion Array Field Propulsion Array Field Propulsion Array Q-thruster Q-thruster Fusion Compressor Energy Well Advanced Energy Well Advanced Actuator Array Advanced Force Field Tiamat Missile Launcher Tiamat Missile Launcher Phasing Sabre Phasing Sabre Force Lance Force Lance Enhanced Force Lance [Rating: 192] Favorites ----------- Power Light Fission Core Engine Ion Engine Power Core Light Fission Core Reactor Mini Fusion Reactor Propulsion Improved VTOL Module Treads Light Treads Leg Potential Leg Wheel Compact Wheel Flight Unit Improved VTOL Module Utility Advanced Hacking Suite Device Experimental Sensor Array Storage Lightpack 2.0 Processor Advanced Signal Interpreter Hackware Advanced Hacking Suite Protection Hardened Medium Armor Plating Weapon Improved Datajack Energy Gun Advanced Beam Rifle Energy Cannon Heavy Particle Cannon Ballistic Gun Light Assault Rifle Launcher Proton Missile Launcher Impact Weapon Powered Hammer Slashing Weapon Phasing Sabre Special Melee Weapon Improved Datajack Build | -11 -10 -10 -10 -9 -8 -7 -7 -7 -7 -6 -6 -6 -6 -6 -5 -5 -5 -5 -5 -4 -4 -4 -4 -4 -3 -3 -2 -1 ------- Run | Scr Mat Min Exi Min Mat Fac Low Low Dat Pro Fac Low Low Zio Pro Fac Upp Upp War Pro Fac Upp Upp Zhi Pro Res Res Acc Slots Evolved 18 | . . . . . 4 2 . . . . 2 . . . . 2 . . . . 2 . . . . 2 2 2 Power 1 | . . . . . . . . . . . . . . . . 1 . . . . . . . . . . . . Propulsion 2 | . . . . . . . . . . . . . . . . . . . . . . . . . . . 2 . Utility 15 | . . . . . 4 2 . . . . 2 . . . . 1 . . . . 2 . . . . 2 . 2 Weapon . | . . . . . . . . . . . . . . . . . . . . . . . . . . . . . Parts Attached 178 | 6 20 2 3 . 26 24 2 . 2 6 9 . . 5 . 13 . 2 4 . 6 . 1 7 . 14 8 18 Power 27 | 1 5 1 . . 3 3 . . . 2 2 . . . . 2 . . 2 . 1 . . . . 3 1 1 Engine 7 | 1 5 1 . . . . . . . . . . . . . . . . . . . . . . . . . . Core 15 | . . . . . 3 3 . . . 2 2 . . . . 2 . . 2 . . . . . . 1 . . Reactor 5 | . . . . . . . . . . . . . . . . . . . . . 1 . . . . 2 1 1 Propulsion 26 | 2 1 1 3 . 2 4 . . . 1 1 . . . . 1 . . . . . . 1 . . 3 3 3 Treads 2 | 1 . 1 . . . . . . . . . . . . . . . . . . . . . . . . . . Leg 3 | . . . 2 . 1 . . . . . . . . . . . . . . . . . . . . . . . Wheel 3 | 1 1 . 1 . . . . . . . . . . . . . . . . . . . . . . . . . Hover . | . . . . . . . . . . . . . . . . . . . . . . . . . . . . . Flight 18 | . . . . . 1 4 . . . 1 1 . . . . 1 . . . . . . 1 . . 3 3 3 Utility 74 | 1 8 . . . 10 11 . . . 1 5 . . . . 6 . . 2 . 5 . . 7 . 6 2 10 Device 31 | . 2 . . . 4 5 . . . 1 1 . . . . 1 . . 2 . 1 . . 4 . 4 2 4 Storage 7 | 1 4 . . . . 1 . . . . . . . . . . . . . . . . . 1 . . . . Processor 14 | . 1 . . . 2 2 . . . . 1 . . . . . . . . . 1 . . . . 1 . 6 Hackware 17 | . . . . . 1 3 . . . . 3 . . . . 5 . . . . 3 . . 1 . 1 . . Protection 5 | . 1 . . . 3 . . . . . . . . . . . . . . . . . . 1 . . . . Artifact . | . . . . . . . . . . . . . . . . . . . . . . . . . . . . . Weapon 51 | 2 6 . . . 11 6 2 . 2 2 1 . . 5 . 4 . 2 . . . . . . . 2 2 4 Energy Gun 6 | . 1 . . . 5 . . . . . . . . . . . . . . . . . . . . . . . Energy Cannon 1 | . . . . . 1 . . . . . . . . . . . . . . . . . . . . . . . Ballistic Gun 10 | 2 5 . . . 3 . . . . . . . . . . . . . . . . . . . . . . . Ballistic Cannon . | . . . . . . . . . . . . . . . . . . . . . . . . . . . . . Launcher 8 | . . . . . 1 1 . . . 1 . . . . . 2 . . . . . . . . . . 1 2 Special Weapon . | . . . . . . . . . . . . . . . . . . . . . . . . . . . . . Impact Weapon 4 | . . . . . . 1 1 . . . 1 . . 1 . . . . . . . . . . . . . . Slashing Weapon 17 | . . . . . 1 1 1 . 1 1 . . . 3 . 2 . 2 . . . . . . . 2 1 2 Piercing Weapon . | . . . . . . . . . . . . . . . . . . . . . . . . . . . . . Special Melee Weapon 5 | . . . . . . 3 . . 1 . . . . 1 . . . . . . . . . . . . . . Unidentified Prototypes 9 | . . . . . 2 . . . . . . . . . . 1 . . 1 . . . . 5 . . . . Parts Lost 35 | . 3 1 . . 1 4 1 . . 4 1 . . . . . . . . . . . 1 . . 14 3 2 Power 7 | . 1 . . . . . . . . 2 . . . . . . . . . . . . . . . 3 1 . Propulsion 6 | . . 1 . . . 2 . . . 1 . . . . . . . . . . . . 1 . . 1 . . Utility 17 | . 1 . . . . 1 . . . 1 1 . . . . . . . . . . . . . . 9 2 2 Weapon 5 | . 1 . . . 1 1 1 . . . . . . . . . . . . . . . . . . 1 . . Highest Loss Streak 5 | . 1 1 . . 1 1 1 . . 3 1 . . . . . . . . . . . 1 . . 5 3 1 Average Slot Usage (%) 93 | . 98 100 99 100 99 90 91 92 92 91 93 93 93 93 93 91 94 94 94 94 94 94 94 93 94 91 68 79 Engine 1 | . 14 14 14 14 . . . . . . . . . . . . . . . . . . . . . . . . Core 6 | . . . . . 8 7 7 7 7 7 6 6 6 6 6 8 11 11 11 11 6 5 5 5 5 4 4 . Treads 1 | . 14 14 8 . . . . . . . . . . . . . . . . . . . . . . . . . Leg 3 | . . . 11 28 17 . . . . . . . . . . . . . . . . . . . . . . . Wheel 1 | . 14 14 8 . . . . . . . . . . . . . . . . . . . . . . . . . Flight 9 | . . . . . . 14 15 15 15 14 13 13 13 13 13 11 11 11 11 11 10 10 10 10 10 9 13 18 Device 11 | . 5 . . . 9 14 15 15 15 14 13 13 13 13 13 11 11 11 11 11 15 15 15 14 15 21 12 8 Storage 9 | . 18 28 28 28 18 7 7 7 7 7 6 6 6 6 6 5 5 5 5 5 5 5 5 5 5 4 4 3 Processor 7 | . . . . . 16 7 7 7 7 7 6 6 6 6 6 5 5 5 5 5 5 5 5 5 5 3 4 20 Hackware 21 | . . . . . 1 21 23 23 23 23 33 33 33 33 33 35 35 35 35 35 36 36 36 36 36 31 17 15 Protection 1 | . 1 . . . 8 . . . . . . . . . . . . . . . . . . . . . . . Ballistic Gun 4 | . 25 28 28 28 9 . . . . . . . . . . . . . . . . . . . . . . . Impact Weapon 1 | . . . . . . 2 6 7 3 . 5 6 6 1 . . . . . . . . . . . . . . Slashing Weapon 4 | . . . . . . 6 7 7 7 6 6 6 6 6 6 4 5 5 5 5 5 5 5 5 5 5 7 7 Special Melee Weapon 2 | . . . . . . 4 . . 3 7 . . . 5 6 5 5 5 5 5 5 5 5 5 5 2 . . Naked Turns . | . . . . . . . . . . . . . . . . . . . . . . . . . . . . . Heaviest Build 88 | 9 71 71 71 71 88 83 17 17 17 17 18 18 18 18 18 25 25 25 25 23 24 24 24 26 26 31 38 53 Greatest Support 60 | 16 16 16 60 60 60 60 18 18 18 18 18 18 18 18 18 26 26 26 26 26 26 26 26 26 26 35 45 53 Greatest Overweight (x) 4 | . 4 4 4 1 2 1 . . . . . . . . . . . . . . . . . . . . . . Average Overweight (x) . | . . 4 2 1 1 . . . . . . . . . . . . . . . . . . . . . . . Largest Inventory Capacity 40 | 6 20 20 20 20 20 40 24 24 24 24 24 24 24 24 24 24 24 24 24 24 24 24 24 24 24 24 24 24 Average Capacity 22 | 5 10 20 20 20 20 23 24 24 24 24 24 24 24 24 24 24 24 24 24 24 24 24 24 24 24 24 24 24 Most Carried 24 | 4 19 20 20 20 20 24 24 24 24 24 24 24 24 24 24 24 24 24 24 24 24 24 24 23 23 24 21 24 Average Carried 21 | 2 8 19 19 20 19 21 23 24 24 22 23 24 24 24 24 23 24 24 23 24 23 24 22 22 23 22 17 21 Final Capacity 24 | 6 20 20 20 20 20 24 24 24 24 24 24 24 24 24 24 24 24 24 24 24 24 24 24 24 24 24 24 24 Final Carried 24 | 4 19 19 20 20 20 24 24 24 24 22 24 24 24 24 24 24 24 24 24 24 24 24 21 23 23 18 20 24 Class Distribution -------------------- 32% | Wizard-Sprinter 23% | Hauler-Mutant 16% | Hacker-Sprinter 16% | Hacker-Mutant 5% | Wizard-Mutant 4% | Mutant Dominant Class ---------------- Mutant | -10/Materials Hauler-Mutant | -10/Mines Hauler-Mutant | -10/Exiles Hauler-Mutant | -9/Mines Hauler-Mutant | -8/Materials Hacker-Sprinter | -7/Factory Hacker-Sprinter | -7/Lower Caves Hacker-Sprinter | -7/Lower Caves Hacker-Sprinter | -7/Data Miner Hacker-Mutant | -6/Proximity Caves Hacker-Mutant | -6/Factory Hacker-Mutant | -6/Lower Caves Hacker-Mutant | -6/Lower Caves Hacker-Mutant | -6/Zion Hacker-Mutant | -5/Proximity Caves Wizard-Sprinter | -5/Factory Wizard-Sprinter | -5/Upper Caves Wizard-Sprinter | -5/Upper Caves Wizard-Sprinter | -5/Warlord Wizard-Sprinter | -4/Proximity Caves Wizard-Sprinter | -4/Factory Wizard-Sprinter | -4/Upper Caves Wizard-Sprinter | -4/Upper Caves Wizard-Sprinter | -4/Zhirov Wizard-Sprinter | -3/Proximity Caves Wizard-Sprinter | -3/Research Wizard-Sprinter | -2/Research Wizard-Sprinter | -1/Access Resources | -11 -10 -10 -10 -9 -8 -7 -7 -7 -7 -6 -6 -6 -6 -6 -5 -5 -5 -5 -5 -4 -4 -4 -4 -4 -3 -3 -2 -1 ----------- Run | Scr Mat Min Exi Min Mat Fac Low Low Dat Pro Fac Low Low Zio Pro Fac Upp Upp War Pro Fac Upp Upp Zhi Pro Res Res Acc Matter Collected 2608 | 260 328 29 . . 646 237 17 3 . 85 90 . . 33 . 177 . . 22 . 34 . 50 109 . 104 172 212 Remotely . | . . . . . . . . . . . . . . . . . . . . . . . . . . . . . Salvage Created 6611 | . 623 92 . . 1488 653 . . . 102 486 . . . . 1297 . . . . 68 . . 264 . 763 286 489 Parts 289 | . 34 4 . . 73 34 . . . 4 11 . . . . 40 . . . . 2 . . 1 . 42 16 28 Haulers Intercepted 22 | . 1 . . . 4 2 . . . . 4 . . . . 7 . . . . . . . . . 2 . 2 Recyclers Shooed 12 | . 3 . . . 7 1 . . . . . . . . . . . . . . . . . . . . 1 . Parts Field Recycled . | . . . . . . . . . . . . . . . . . . . . . . . . . . . . . Retrieved Matter . | . . . . . . . . . . . . . . . . . . . . . . . . . . . . . Parts Self-Destructed 30 | . . . . . . . . . . 2 . . . . . . . . 27 . . . . 1 . . . . Prevented 9 | . . . . . . . . . . 2 . . . . . . . . 7 . . . . . . . . . Kills | -11 -10 -10 -10 -9 -8 -7 -7 -7 -7 -6 -6 -6 -6 -6 -5 -5 -5 -5 -5 -4 -4 -4 -4 -4 -3 -3 -2 -1 ------- Run | Scr Mat Min Exi Min Mat Fac Low Low Dat Pro Fac Low Low Zio Pro Fac Upp Upp War Pro Fac Upp Upp Zhi Pro Res Res Acc Combat Hostiles Destroyed 63 | . 11 2 . . 18 5 . . . 4 . . . . . 5 . . . . . . . . . 7 5 6 Melee 17 | . . . . . . 4 . . . 3 . . . . . . . . . . . . . . . 7 1 2 Guns 26 | . 11 2 . . 13 . . . . . . . . . . . . . . . . . . . . . . . Cannons 2 | . . . . . 2 . . . . . . . . . . . . . . . . . . . . . . . AOE 17 | . . . . . 3 1 . . . 1 . . . . . 4 . . . . . . . . . . 4 4 Classes Destroyed 11 | . 7 . . . 2 1 . . . . . . . . . . . . . . . . . . . . . 1 Worker 10 | . 3 . . . 2 1 . . . . . . . . . 2 . . . . . . . . . . 1 1 Builder 3 | . . . . . 1 . . . . . . . . . . 1 . . . . . . . . . . 1 . Hauler 22 | . 1 . . . 4 2 . . . . 4 . . . . 7 . . . . . . . . . 2 . 2 Recycler 12 | . 2 . . . 4 3 . . . . . . . . . 2 . . . . . . . . . . 1 . Operator 12 | . 1 . . . 2 3 . . . . 2 . . . . 1 . . . . . . . . . 1 . 2 Drone 1 | . . . . . . . . . . . . . . . . . . . . . . . . . . . . 1 Watcher 17 | . 1 . . . 3 3 . . . . 1 . . . . 2 . . . . 2 . . . . 2 1 2 Swarmer 31 | . 6 . . . 4 4 . . . 4 . . . . . 5 . . . . . . . . . . 4 4 Grunt 18 | . 5 2 . . 10 . . . . . . . . . . . . . . . . . . . . 1 . . Sentry 4 | . . . . . 4 . . . . . . . . . . . . . . . . . . . . . . . Programmer 9 | . . . . . . 1 . . . . . . . . . . . . . . . . . . . 6 1 1 Best Kill Streak 7 | . 4 2 . . 7 2 . . . 2 1 . . . . 7 . . . . 2 . . . . 4 7 5 Combat Bots Only 5 | . 2 2 . . 4 1 . . . 2 . . . . . 5 . . . . . . . . . 4 4 5 Max Kills in Single Turn 3 | . 1 1 . . 2 1 . . . 1 1 . . . . 2 . . . . 1 . . . . 1 2 3 Gunslinging . | . . . . . . . . . . . . . . . . . . . . . . . . . . . . . Exploded 3 | . . . . . 2 1 . . . 1 . . . . . 2 . . . . . . . . . . 1 3 Melee 1 | . . . . . . 1 . . . 1 . . . . . . . . . . . . . . . 1 1 1 Uniques/NPCs Destroyed . | . . . . . . . . . . . . . . . . . . . . . . . . . . . . . Combat | -11 -10 -10 -10 -9 -8 -7 -7 -7 -7 -6 -6 -6 -6 -6 -5 -5 -5 -5 -5 -4 -4 -4 -4 -4 -3 -3 -2 -1 -------- Run | Scr Mat Min Exi Min Mat Fac Low Low Dat Pro Fac Low Low Zio Pro Fac Upp Upp War Pro Fac Upp Upp Zhi Pro Res Res Acc Damage Taken 5923 | . 729 103 . . 833 719 45 . 137 592 26 . 16 . 72 144 . 44 . . . . 98 . . 1446 700 219 Core 1450 | . 166 31 . . 112 313 14 . 48 201 20 . . . 28 33 . . . . . . 22 . . 312 124 26 Absorbed by Shields . | . . . . . . . . . . . . . . . . . . . . . . . . . . . . . Core Remaining (%) 76 | 100 . . . 21 79 . . . . 17 . . . . 94 . . . . 96 . . . . 89 76 91 98 Volleys Fired 226 | . 83 12 . . 113 2 . . . 2 . . . . . 6 . . . . . . . . . . 5 3 Largest 2 | . 2 2 . . 2 1 . . . 1 . . . . . 1 . . . . . . . . . . 1 1 Hottest 98 | . 70 40 . . 98 39 . . . 39 . . . . . 39 . . . . . . . . . . 46 46 Shots Fired 419 | . 163 24 . . 214 2 . . . 2 . . . . . 6 . . . . . . . . . . 5 3 Gun 366 | . 163 24 . . 179 . . . . . . . . . . . . . . . . . . . . . . . Cannon 33 | . . . . . 33 . . . . . . . . . . . . . . . . . . . . . . . Launcher 20 | . . . . . 2 2 . . . 2 . . . . . 6 . . . . . . . . . . 5 3 Special . | . . . . . . . . . . . . . . . . . . . . . . . . . . . . . Kinetic 280 | . 143 24 . . 113 . . . . . . . . . . . . . . . . . . . . . . . Thermal 119 | . 20 . . . 99 . . . . . . . . . . . . . . . . . . . . . . . Explosive 8 | . . . . . . . . . . . . . . . . . . . . . . . . . . . 5 3 Electromagnetic 12 | . . . . . 2 2 . . . 2 . . . . . 6 . . . . . . . . . . . . Robot Hit Streak 14 | . 14 13 . . 14 . . . . 2 . . . . . 5 . . . . . . . . . . 6 8 Robot Miss Streak 7 | . 6 2 . . 7 3 . . . . . . . . . 2 . . . . . . . . . . . . Penetration Max . | . . . . . . . . . . . . . . . . . . . . . . . . . . . . . Secondary Targets 1 | . 1 . . . . . . . . . . . . . . . . . . . . . . . . . . . Max Gunslinging Chain 1 | . 1 . . . . . . . . . . . . . . . . . . . . . . . . . . . Shots Hit Robots 472 | . 97 19 . . 142 31 . . 2 13 27 . . 5 . 54 . . . . 4 . . 9 . 36 15 18 Core Hits 185 | . 36 8 . . 50 17 . . . 5 5 . . . . 22 . . . . 2 . . 2 . 11 13 14 Critical Hits 10 | . . . . . 3 1 . . . . 1 . . . . 2 . . . . . . . . . 1 . 2 Critical Kills 6 | . . . . . 1 1 . . . . . . . . . 2 . . . . . . . . . . . 2 Critical Parts Destroyed 4 | . . . . . 2 . . . . . 1 . . . . . . . . . . . . . . 1 . . Melee Attacks 629 | . . . . . 1 150 3 . 2 29 82 16 . 6 . 102 10 1 7 . 19 18 . 9 3 96 23 52 Impact 26 | . . . . . . 4 . . . . 19 3 . . . . . . . . . . . . . . . . Slashing 590 | . . . . . 1 145 3 . 1 29 63 13 . . . 101 10 1 7 . 19 18 . 5 3 96 23 52 Piercing . | . . . . . . . . . . . . . . . . . . . . . . . . . . . . . Sneak Attacks 58 | . . . . . . 11 . . 2 . 9 . . 5 . 15 . . . . 2 . . 3 . 5 3 3 Combat Hostiles . | . . . . . . . . . . . . . . . . . . . . . . . . . . . . . Follow-up Attacks 14 | . . . . . . . . . . . 7 . . . . . . . . . . . . . . 4 2 1 Damage Inflicted 18464 | . 779 147 . . 2590 1787 . . 102 456 1505 . . . . 3734 . . . . 354 . . 644 . 2713 1736 1917 Guns 2793 | . 779 147 . . 1867 . . . . . . . . . . . . . . . . . . . . . . . Cannons 575 | . . . . . 575 . . . . . . . . . . . . . . . . . . . . . . . Explosions 1828 | . . . . . 115 83 . . . 106 . . . . . 299 . . . . . . . . . . 813 412 Melee 13227 | . . . . . . 1704 . . 102 350 1505 . . . . 3435 . . . . 354 . . 644 . 2705 923 1505 Ramming 41 | . . . . . 33 . . . . . . . . . . . . . . . . . . . . 8 . . Kinetic 1731 | . 616 147 . . 968 . . . . . . . . . . . . . . . . . . . . . . . Thermal 1675 | . 163 . . . 1512 . . . . . . . . . . . . . . . . . . . . . . . Explosive 1225 | . . . . . . . . . . . . . . . . . . . . . . . . . . . 813 412 Electromagnetic 565 | . . . . . 77 83 . . . 106 . . . . . 299 . . . . . . . . . . . . Impact 526 | . . . . . . 48 . . . . 478 . . . . . . . . . . . . . . . . . Slashing 12701 | . . . . . . 1656 . . 102 350 1027 . . . . 3435 . . . . 354 . . 644 . 2705 923 1505 Piercing . | . . . . . . . . . . . . . . . . . . . . . . . . . . . . . Highest Corruption 11 | . . . . . 2 2 2 2 2 2 . . . . . . . . 1 . . . 1 1 1 11 1 . Average Corruption 2 | . . . . . 2 1 2 2 2 2 . . . . . . . . 1 . . . 1 1 1 5 1 . Corruption Purged . | . . . . . . . . . . . . . . . . . . . . . . . . . . . . . Effects 53 | . . . . . 13 16 2 1 . 6 . . . . . . . . . . . . 1 . . 14 . . Message Errors 15 | . . . . . 3 7 . . . 3 . . . . . . . . . . . . . . . 2 . . Matter Fused 1 | . . . . . . . . . . . . . . . . . . . . . . . . . . 1 . . Heat Flow Errors 10 | . . . . . 4 4 . . . . . . . . . . . . . . . . . . . 2 . . Energy Discharges 8 | . . . . . 1 2 2 1 . 1 . . . . . . . . . . . . . . . 1 . . Data Loss (minor) 9 | . . . . . 3 2 . . . 1 . . . . . . . . . . . . 1 . . 2 . . Misdirections 1 | . . . . . . . . . . . . . . . . . . . . . . . . . . 1 . . Targeting Errors 8 | . . . . . 1 1 . . . 1 . . . . . . . . . . . . . . . 5 . . Weapon Failures 1 | . . . . . 1 . . . . . . . . . . . . . . . . . . . . . . . Overload Shots . | . . . . . . . . . . . . . . . . . . . . . . . . . . . . . Overflow Damage 2654 | . . . . . 20 247 . . . 76 466 . . . . 633 . . . . 117 . . 257 . 399 204 235 Projectiles 20 | . . . . . 20 . . . . . . . . . . . . . . . . . . . . . . . Explosions 93 | . . . . . . . . . . . . . . . . . . . . . . . . . . . 68 25 Melee 2541 | . . . . . . 247 . . . 76 466 . . . . 633 . . . . 117 . . 257 . 399 136 210 Knockbacks 1 | . . . . . . . . . . . 1 . . . . . . . . . . . . . . . . . Impact 1 | . . . . . . . . . . . 1 . . . . . . . . . . . . . . . . . Kinetic . | . . . . . . . . . . . . . . . . . . . . . . . . . . . . . Secondary . | . . . . . . . . . . . . . . . . . . . . . . . . . . . . . Self-Inflicted Damage 50 | . . . . . 16 . . . . . . . . . . . . . . . . . . . . 3 31 . Shots 2 | . . . . . . . . . . . . . . . . . . . . . . . . . . . 2 . Rammed 4 | . . . . . 1 . . . . . . . . . . . . . . . . . . . . 3 . . Targets Rammed 4 | . . . . . 1 . . . . . . . . . . . . . . . . . . . . 3 . . Kicked . | . . . . . . . . . . . . . . . . . . . . . . . . . . . . . Crushed . | . . . . . . . . . . . . . . . . . . . . . . . . . . . . . Highest Temperature 268 | . 210 18 . . 227 268 . . . . . . . . . . . . . . . . . . . 167 . . Average Temperature 77 | . 70 12 . . 49 129 . . . . . . . . . . . . . . . . . . . 83 . . Received Heat Transfer 966 | . 144 60 . . 387 135 18 . 18 . 6 . . . 9 . . 9 . . . . . . . 99 63 18 Effects 1 | . 1 . . . . . . . . . . . . . . . . . . . . . . . . . . . Interference 1 | . 1 . . . . . . . . . . . . . . . . . . . . . . . . . . . Siege Activations . | . . . . . . . . . . . . . . . . . . . . . . . . . . . . . Robots Corrupted 1 | . . . . . . . . . . . . . . . . 1 . . . . . . . . . . . . Combat Hostiles 1 | . . . . . . . . . . . . . . . . 1 . . . . . . . . . . . . Parts Fried 9 | . . . . . . 3 . . . . 5 . . . . 1 . . . . . . . . . . . . Impact Corruptions 4 | . . . . . . 1 . . . . 3 . . . . . . . . . . . . . . . . . Robots Melted . | . . . . . . . . . . . . . . . . . . . . . . . . . . . . . Combat Hostiles . | . . . . . . . . . . . . . . . . . . . . . . . . . . . . . Parts Melted 2 | . . . . . 2 . . . . . . . . . . . . . . . . . . . . . . . Heat Transferred 3084 | . 481 . . . 2603 . . . . . . . . . . . . . . . . . . . . . . . Parts Sabotaged . | . . . . . . . . . . . . . . . . . . . . . . . . . . . . . Parts Stolen 1 | . . . . . . . . . . . . . . . . . . . . . . . 1 . . . . . Parts Stripped . | . . . . . . . . . . . . . . . . . . . . . . . . . . . . . Power Chain Reactions 4 | . . . . . 3 . . . . . . . . . . 1 . . . . . . . . . . . . Missiles Intercepted . | . . . . . . . . . . . . . . . . . . . . . . . . . . . . . Alert | -11 -10 -10 -10 -9 -8 -7 -7 -7 -7 -6 -6 -6 -6 -6 -5 -5 -5 -5 -5 -4 -4 -4 -4 -4 -3 -3 -2 -1 ------- Run | Scr Mat Min Exi Min Mat Fac Low Low Dat Pro Fac Low Low Zio Pro Fac Upp Upp War Pro Fac Upp Upp Zhi Pro Res Res Acc Peak Influence 720 | . 146 73 . . 277 434 . . . . 543 . . . . 519 . . . . 400 . . . . 180 373 720 Average Influence 123 | . 66 61 . . 85 153 . . . . 168 . . . . 135 . . . . 51 . . . . 62 276 415 Maximum Alert Level 3 | . . . . . 1 2 . . . . 2 . . . . 2 . . . . 2 . . . . . 1 3 Low Security (%) 75 | 100 100 100 . 100 89 56 . . . . 59 . . . . 76 . . . . 90 . . . . 100 18 . Level 1 20 | . . . . . 10 39 . . . . 39 . . . . 8 . . . . 8 . . . . . 81 58 Level 2 4 | . . . . . . 4 . . . . . . . . . 15 . . . . 1 . . . . . . 38 Level 3 . | . . . . . . . . . . . . . . . . . . . . . . . . . . . . 2 Level 4 . | . . . . . . . . . . . . . . . . . . . . . . . . . . . . . Level 5 . | . . . . . . . . . . . . . . . . . . . . . . . . . . . . . High Security . | . . . . . . . . . . . . . . . . . . . . . . . . . . . . . Max Security . | . . . . . . . . . . . . . . . . . . . . . . . . . . . . . Squads Dispatched 29 | . 1 . . . 3 8 . . . . 3 . . . . 5 . . . . 3 . . . . 4 1 1 Investigation 9 | . . . . . 2 2 . . . . 1 . . . . 1 . . . . 2 . . . . 1 . . Extermination 10 | . . . . . . 3 . . . . 1 . . . . 3 . . . . 1 . . . . 2 . . Reinforcement 10 | . 1 . . . 1 3 . . . . 1 . . . . 1 . . . . . . . . . 1 1 1 Assault . | . . . . . . . . . . . . . . . . . . . . . . . . . . . . . Garrison . | . . . . . . . . . . . . . . . . . . . . . . . . . . . . . Intercept . | . . . . . . . . . . . . . . . . . . . . . . . . . . . . . Construction Impeded 2 | . . . . . . . . . . . . . . . . 1 . . . . . . . . . . 1 . Haulers Reinforced 1 | . . . . . . 1 . . . . . . . . . . . . . . . . . . . . . . Stealth | -11 -10 -10 -10 -9 -8 -7 -7 -7 -7 -6 -6 -6 -6 -6 -5 -5 -5 -5 -5 -4 -4 -4 -4 -4 -3 -3 -2 -1 --------- Run | Scr Mat Min Exi Min Mat Fac Low Low Dat Pro Fac Low Low Zio Pro Fac Upp Upp War Pro Fac Upp Upp Zhi Pro Res Res Acc Distress Signals 10 | . . . . . 3 2 . . . . . . . . . 1 . . 1 . . . . . . 1 . 2 Communications Jammed 29 | . . . . . . . . . . . . . . . . . . . . . 1 . . . . 12 . 16 Distress Signals 15 | . . . . . . . . . . . . . . . . . . . . . . . . . . 12 . 3 Times Spotted 289 | . 28 4 . . 41 77 4 . 4 14 8 . 2 . 3 13 7 1 1 2 6 . 4 . . 31 12 27 Peak Tracking Total 11 | . 3 2 . . 4 11 3 . 4 5 3 . 2 . 3 5 6 1 1 4 3 . 4 . . 9 5 7 Tactical Retreats 59 | . 4 1 . . 1 28 1 . . 4 3 . 1 . . 3 1 1 . . . . . . . 4 1 6 Traps | -11 -10 -10 -10 -9 -8 -7 -7 -7 -7 -6 -6 -6 -6 -6 -5 -5 -5 -5 -5 -4 -4 -4 -4 -4 -3 -3 -2 -1 ------- Run | Scr Mat Min Exi Min Mat Fac Low Low Dat Pro Fac Low Low Zio Pro Fac Upp Upp War Pro Fac Upp Upp Zhi Pro Res Res Acc Traps Triggered 7 | . 1 . . . 3 1 . . . . . . . . . . . . . . 1 . . . . . . 1 Indirectly . | . . . . . . . . . . . . . . . . . . . . . . . . . . . . . Trap Hack Attempts . | . . . . . . . . . . . . . . . . . . . . . . . . . . . . . Triggered . | . . . . . . . . . . . . . . . . . . . . . . . . . . . . . Disarmed . | . . . . . . . . . . . . . . . . . . . . . . . . . . . . . Reprogrammed . | . . . . . . . . . . . . . . . . . . . . . . . . . . . . . Reused . | . . . . . . . . . . . . . . . . . . . . . . . . . . . . . Traps Extracted . | . . . . . . . . . . . . . . . . . . . . . . . . . . . . . Installed . | . . . . . . . . . . . . . . . . . . . . . . . . . . . . . Triggered 9 | . . . . . . . . . . . . . . . 2 . . . 7 . . . . . . . . . Machines | -11 -10 -10 -10 -9 -8 -7 -7 -7 -7 -6 -6 -6 -6 -6 -5 -5 -5 -5 -5 -4 -4 -4 -4 -4 -3 -3 -2 -1 ---------- Run | Scr Mat Min Exi Min Mat Fac Low Low Dat Pro Fac Low Low Zio Pro Fac Upp Upp War Pro Fac Upp Upp Zhi Pro Res Res Acc Machines Disabled 12 | . . . . . 3 6 . . . . 1 . . . . . . . . . . . . . . . . 2 Max in Single Turn 1 | . . . . . 1 1 . . . . 1 . . . . . . . . . . . . . . . . 1 Garrison Access 3 | . . . . . . 1 . . . . 1 . . . . 1 . . . . . . . . . . . . Energy Cycler 1 | . . . . . . . . . . . . . . . . . . . . . . . . . . . . 1 Machines Sabotaged . | . . . . . . . . . . . . . . . . . . . . . . . . . . . . . Garrisons Compromised . | . . . . . . . . . . . . . . . . . . . . . . . . . . . . . Overloaded Fab Kills . | . . . . . . . . . . . . . . . . . . . . . . . . . . . . . Fab Network Shutdowns 4 | . . . . . . 1 . . . . 1 . . . . 1 . . . . 1 . . . . . . . Hacking | -11 -10 -10 -10 -9 -8 -7 -7 -7 -7 -6 -6 -6 -6 -6 -5 -5 -5 -5 -5 -4 -4 -4 -4 -4 -3 -3 -2 -1 --------- Run | Scr Mat Min Exi Min Mat Fac Low Low Dat Pro Fac Low Low Zio Pro Fac Upp Upp War Pro Fac Upp Upp Zhi Pro Res Res Acc Machines Accessed 104 | . 2 . 2 . 9 19 3 . 3 . 17 . . . . 17 . 1 4 . 11 . . 5 . 6 1 4 Terminals 66 | . 2 . . . 8 14 1 . . . 13 . . . . 14 . . . . 6 . . . . 4 1 3 Fabricators 10 | . . . . . . 3 . . . . 2 . . . . 2 . . . . 2 . . . . 1 . . Repair Stations 1 | . . . . . . . . . . . . . . . . . . . . . 1 . . . . . . . Recycling Units . | . . . . . . . . . . . . . . . . . . . . . . . . . . . . . Scanalyzers 5 | . . . . . 1 . . . . . 1 . . . . . . . . . 2 . . . . 1 . . Garrison Access 5 | . . . . . . 2 . . . . 1 . . . . 1 . . . . . . . . . . . 1 Total Hacks 409 | . 6 . 2 . 27 74 7 . 17 . 77 . . . . 69 . 1 10 . 53 . . 18 . 32 5 11 Successful 310 | . 6 . 2 . 15 43 7 . 17 . 49 . . . . 62 . 1 10 . 47 . . 18 . 21 5 7 Failed 98 | . . . . . 12 31 . . . . 28 . . . . 7 . . . . 5 . . . . 11 . 4 Catastrophic 14 | . . . . . 2 5 . . . . 4 . . . . 2 . . . . 1 . . . . . . . Database Lockouts 1 | . . . . . . . . . . . . . . . . . . . . . 1 . . . . . . . Manual 179 | . 5 . 1 . 18 31 . . . . 40 . . . . 33 . . . . 19 . . . . 23 4 5 Terminals 271 | . 6 . . . 25 53 1 . . . 63 . . . . 55 . . . . 30 . . . . 24 5 9 Fabricators 58 | . . . . . . 18 . . . . 11 . . . . 13 . . . . 11 . . . . 5 . . Repair Stations 1 | . . . . . . . . . . . . . . . . . . . . . 1 . . . . . . . Recycling Units . | . . . . . . . . . . . . . . . . . . . . . . . . . . . . . Scanalyzers 18 | . . . . . 2 . . . . . 2 . . . . . . . . . 11 . . . . 3 . . Garrison Access 7 | . . . . . . 3 . . . . 1 . . . . 1 . . . . . . . . . . . 2 Terminal Hacks 211 | . 4 . 2 . 11 24 7 . 17 . 34 . . . . 40 . 1 10 . 22 . . 18 . 12 3 6 Record 33 | . . . 1 . . . 6 . 11 . . . . . . . . . 8 . . . . 6 . . . 1 Part Schematic 24 | . . . . . 2 1 . . 3 . 5 . . . . 4 . . . . 1 . . 4 . 4 . . Robot Analysis 6 | . . . . . . . . . . . . . . . . . . . . . 2 . . 4 . . . . Prototype ID Bank 22 | . 1 . . . . 2 . . 3 . 3 . . . . 6 . . . . 2 . . 4 . 1 . . Open Door 4 | . . . . . . . 1 . . . . . . . . . . 1 2 . . . . . . . . . Level Access Points 3 | . . . . . . . . . . . . . . . . . . . . . . . . . . 1 1 1 Branch Access Points 5 | . . . . . . 1 . . . . 1 . . . . 1 . . . . 1 . . . . 1 . . Emergency Access Points 1 | . . . . . . . . . . . 1 . . . . . . . . . . . . . . . . . Machine Index 1 | . . . . . . . . . . . 1 . . . . . . . . . . . . . . . . . Terminal Index 4 | . . . . . . 1 . . . . 1 . . . . 1 . . . . . . . . . 1 . . Fabricator Index 4 | . . . . . . 1 . . . . 1 . . . . 1 . . . . . . . . . 1 . . Alert Level 15 | . 2 . . . 3 1 . . . . 3 . . . . 3 . . . . 1 . . . . . . 2 Unreport Threat 22 | . . . . . 2 5 . . . . 3 . . . . 6 . . . . 4 . . . . 1 . 1 Locate Traps 21 | . . . . . . 5 . . . . 5 . . . . 6 . . . . 3 . . . . . 1 1 Investigation Status 1 | . . . . . . . . . . . 1 . . . . . . . . . . . . . . . . . Recall Investigation 3 | . . . . . 1 . . . . . 1 . . . . 1 . . . . . . . . . . . . Recall Extermination 6 | . . . . . . 1 . . . . 1 . . . . 3 . . . . 1 . . . . . . . Hauler Manifests 9 | . 1 . . . 2 . . . . . 2 . . . . 1 . . . . 2 . . . . 1 . . Registered Components 3 | . . . . . . 1 . . . . 1 . . . . . . . . . 1 . . . . . . . Registered Prototypes 6 | . . . . . 1 1 . . . . 1 . . . . 2 . . . . 1 . . . . . . . Zone Layout 17 | . . . . . . 4 . . . . 3 . . . . 5 . . . . 3 . . . . 1 1 . EX-Prototype ID Bank 1 | . . . 1 . . . . . . . . . . . . . . . . . . . . . . . . . Fabricator Hacks 36 | . . . . . . 10 . . . . 6 . . . . 9 . . . . 8 . . . . 3 . . Load Schematic 13 | . . . . . . 4 . . . . 2 . . . . 3 . . . . 3 . . . . 1 . . Build 23 | . . . . . . 6 . . . . 4 . . . . 6 . . . . 5 . . . . 2 . . Repair Station Hacks . | . . . . . . . . . . . . . . . . . . . . . . . . . . . . . Recycling Unit Hacks . | . . . . . . . . . . . . . . . . . . . . . . . . . . . . . Scanalyzer 17 | . . . . . 2 . . . . . 2 . . . . . . . . . 11 . . . . 2 . . Insert Component 8 | . . . . . 1 . . . . . 1 . . . . . . . . . 5 . . . . 1 . . Analyze 9 | . . . . . 1 . . . . . 1 . . . . . . . . . 6 . . . . 1 . . Garrison Access Hacks 3 | . . . . . . 1 . . . . 1 . . . . 1 . . . . . . . . . . . . Seal Access 3 | . . . . . . 1 . . . . 1 . . . . 1 . . . . . . . . . . . . Unauthorized Hacks 43 | . 2 . . . 2 8 . . . . 6 . . . . 12 . . . . 6 . . . . 4 2 1 Terminals 29 | . 2 . . . 2 5 . . . . 4 . . . . 8 . . . . 3 . . . . 2 2 1 Track 5 | . 1 . . . 1 1 . . . . . . . . . 1 . . . . . . . . . . 1 . Botnet 24 | . 1 . . . 1 4 . . . . 4 . . . . 7 . . . . 3 . . . . 2 1 1 Fabricators 14 | . . . . . . 3 . . . . 2 . . . . 4 . . . . 3 . . . . 2 . . Report 1 | . . . . . . . . . . . . . . . . 1 . . . . . . . . . . . . Prioritize 3 | . . . . . . 1 . . . . . . . . . . . . . . 1 . . . . 1 . . Siphon 9 | . . . . . . 2 . . . . 2 . . . . 2 . . . . 2 . . . . 1 . . Haulers 1 | . . . . . . . . . . . . . . . . 1 . . . . . . . . . . . . Repair Stations . | . . . . . . . . . . . . . . . . . . . . . . . . . . . . . Recycling Units . | . . . . . . . . . . . . . . . . . . . . . . . . . . . . . Scanalyzers . | . . . . . . . . . . . . . . . . . . . . . . . . . . . . . Garrison Access . | . . . . . . . . . . . . . . . . . . . . . . . . . . . . . Data Cores Recovered 3 | . . . . . 1 . . . . . . . . . . 1 . . . . . . . . . . . 1 Used 1 | . . . . . . . . . . . . . . . . . . . . . . . . . . . . 1 Hacking Detections 73 | . 1 . . . 8 16 . . . . 16 . . . . 11 . . . . 10 . . . . 6 1 4 Full Trace Events 6 | . . . . . . 2 . . . . 1 . . . . 1 . . . . 1 . . . . 1 . . Feedback Events 1 | . . . . . . . . . . . 1 . . . . . . . . . . . . . . . . . Hackware Fried 1 | . . . . . . . . . . . 1 . . . . . . . . . . . . . . . . . Feedback Blocked . | . . . . . . . . . . . . . . . . . . . . . . . . . . . . . Robot Schematics Acquired . | . . . . . . . . . . . . . . . . . . . . . . . . . . . . . Robots Built . | . . . . . . . . . . . . . . . . . . . . . . . . . . . . . Matter . | . . . . . . . . . . . . . . . . . . . . . . . . . . . . . Time . | . . . . . . . . . . . . . . . . . . . . . . . . . . . . . Total Robot Build Rating . | . . . . . . . . . . . . . . . . . . . . . . . . . . . . . Part Schematics Acquired 31 | . . . . . 3 1 . . 3 . 6 . . . . 4 . . . . 5 . . 4 . 5 . . Parts Built 20 | . . . . . . 5 . . . . 3 . . . . 5 . . . . 5 . . . . 2 . . Matter 3780 | . . . . . . 692 . . . . 590 . . . . 865 . . . . 1057 . . . . 576 . . Time 1180 | . . . . . . 335 . . . . 210 . . . . 293 . . . . 274 . . . . 68 . . Total Part Build Rating 105 | . . . . . . 15 . . . . 13 . . . . 30 . . . . 31 . . . . 16 . . Parts Repaired . | . . . . . . . . . . . . . . . . . . . . . . . . . . . . . Time . | . . . . . . . . . . . . . . . . . . . . . . . . . . . . . Parts Recycled . | . . . . . . . . . . . . . . . . . . . . . . . . . . . . . Recycled Matter . | . . . . . . . . . . . . . . . . . . . . . . . . . . . . . Retrieved Matter . | . . . . . . . . . . . . . . . . . . . . . . . . . . . . . Retrieved Components . | . . . . . . . . . . . . . . . . . . . . . . . . . . . . . Parts Scanalyzed 7 | . . . . . 1 . . . . . 1 . . . . . . . . . 4 . . . . 1 . . Part Schematics Acquired 7 | . . . . . 1 . . . . . 1 . . . . . . . . . 4 . . . . 1 . . Parts Damaged 1 | . . . . . . . . . . . . . . . . . . . . . 1 . . . . . . . Bothacking | -11 -10 -10 -10 -9 -8 -7 -7 -7 -7 -6 -6 -6 -6 -6 -5 -5 -5 -5 -5 -4 -4 -4 -4 -4 -3 -3 -2 -1 ------------ Run | Scr Mat Min Exi Min Mat Fac Low Low Dat Pro Fac Low Low Zio Pro Fac Upp Upp War Pro Fac Upp Upp Zhi Pro Res Res Acc Used RIF Installer . | . . . . . . . . . . . . . . . . . . . . . . . . . . . . . Robots Hacked 11 | . . . . . . 1 . . 1 . . . . 5 . 1 . . . . . . . 3 . . . . Non-combat 3 | . . . . . . 1 . . . . . . . 1 . 1 . . . . . . . . . . . . Combat 8 | . . . . . . . . . 1 . . . . 4 . . . . . . . . . 3 . . . . Robot Hacks Applied 11 | . . . . . . 1 . . 1 . . . . 5 . 1 . . . . . . . 3 . . . . parse_system 9 | . . . . . . . . . 1 . . . . 5 . . . . . . . . . 3 . . . . find_chute 1 | . . . . . . 1 . . . . . . . . . . . . . . . . . . . . . . find_fabricator 1 | . . . . . . . . . . . . . . . . 1 . . . . . . . . . . . . Relay Couplers Released . | . . . . . . . . . . . . . . . . . . . . . . . . . . . . . Robots Rewired . | . . . . . . . . . . . . . . . . . . . . . . . . . . . . . Allies Hacked . | . . . . . . . . . . . . . . . . . . . . . . . . . . . . . Hacks Repelled . | . . . . . . . . . . . . . . . . . . . . . . . . . . . . . Allies | -11 -10 -10 -10 -9 -8 -7 -7 -7 -7 -6 -6 -6 -6 -6 -5 -5 -5 -5 -5 -4 -4 -4 -4 -4 -3 -3 -2 -1 -------- Run | Scr Mat Min Exi Min Mat Fac Low Low Dat Pro Fac Low Low Zio Pro Fac Upp Upp War Pro Fac Upp Upp Zhi Pro Res Res Acc Total Allies . | . . . . . . . . . . . . . . . . . . . . . . . . . . . . . Largest Group . | . . . . . . . . . . . . . . . . . . . . . . . . . . . . . Highest-Rated Group . | . . . . . . . . . . . . . . . . . . . . . . . . . . . . . Highest-Rated Ally . | . . . . . . . . . . . . . . . . . . . . . . . . . . . . . Total Orders . | . . . . . . . . . . . . . . . . . . . . . . . . . . . . . Ally Attacks . | . . . . . . . . . . . . . . . . . . . . . . . . . . . . . Total Damage . | . . . . . . . . . . . . . . . . . . . . . . . . . . . . . Kills . | . . . . . . . . . . . . . . . . . . . . . . . . . . . . . Allies Corrupted . | . . . . . . . . . . . . . . . . . . . . . . . . . . . . . Allies Melted . | . . . . . . . . . . . . . . . . . . . . . . . . . . . . . Intel | -11 -10 -10 -10 -9 -8 -7 -7 -7 -7 -6 -6 -6 -6 -6 -5 -5 -5 -5 -5 -4 -4 -4 -4 -4 -3 -3 -2 -1 ------- Run | Scr Mat Min Exi Min Mat Fac Low Low Dat Pro Fac Low Low Zio Pro Fac Upp Upp War Pro Fac Upp Upp Zhi Pro Res Res Acc Robot Analysis Total 6 | . . . . . . . . . . . . . . . . . . . . . 2 . . 4 . . . . Derelict Logs Recovered 8 | . . . . . . . . 1 . 2 . 1 1 1 . . 1 . . . . . 1 . . . . . Drone Launches . | . . . . . . . . . . . . . . . . . . . . . . . . . . . . . Drone Recoveries . | . . . . . . . . . . . . . . . . . . . . . . . . . . . . . Exploration | -11 -10 -10 -10 -9 -8 -7 -7 -7 -7 -6 -6 -6 -6 -6 -5 -5 -5 -5 -5 -4 -4 -4 -4 -4 -3 -3 -2 -1 ------------- Run | Scr Mat Min Exi Min Mat Fac Low Low Dat Pro Fac Low Low Zio Pro Fac Upp Upp War Pro Fac Upp Upp Zhi Pro Res Res Acc Turns Passed 15055 | 40 994 416 330 64 2359 2307 159 85 42 523 1255 259 112 242 121 1724 208 103 412 145 941 224 79 123 65 982 359 382 Spaces Moved 17575 | 28 562 262 238 29 1060 2827 390 255 106 478 1577 477 226 658 351 2069 464 302 675 314 1019 358 234 195 156 1072 452 741 Core 1 | 1 . . . . . . . . . . . . . . . . . . . . . . . . . . . . Treads . | . . . . . . . . . . . . . . . . . . . . . . . . . . . . . Legs 1197 | . . . 99 29 1060 9 . . . . . . . . . . . . . . . . . . . . . . Wheels 990 | 27 562 262 139 . . . . . . . . . . . . . . . . . . . . . . . . . Hover . | . . . . . . . . . . . . . . . . . . . . . . . . . . . . . Flight 15387 | . . . . . . 2818 390 255 106 478 1577 477 226 658 351 2069 464 302 675 314 1019 358 234 195 156 1072 452 741 Fastest Speed 25 | 50 100 140 130 130 130 32 32 32 32 32 34 34 34 34 34 32 32 32 32 32 32 32 32 32 32 32 27 25 Average Speed 43 | 98 109 140 136 130 130 32 32 32 32 33 34 34 34 34 34 32 32 32 32 32 32 32 32 32 32 32 28 25 Slowest Speed 170 | 100 140 140 170 130 170 130 32 32 32 35 34 34 34 34 34 34 32 32 32 32 32 32 32 32 32 32 29 28 Overloaded Moves . | . . . . . . . . . . . . . . . . . . . . . . . . . . . . . Propulsion Burnouts . | . . . . . . . . . . . . . . . . . . . . . . . . . . . . . Robots Hopped 28 | . . . . . . 2 . . . . 1 . . . . 2 . . . . 2 . . . . 2 8 11 Cave-ins Triggered 2 | . . . . . . . . . . . . . . . . . . . . . . . . . . 2 . . Teleports 1 | . . . . . . . . . . . . . . . . . . . . . . . . 1 . . . . Exploration Rate (%) 50 | 4 61 49 64 8 65 61 59 49 77 54 38 67 47 82 56 60 67 53 89 44 30 46 56 62 40 28 15 27 Regions Visited 28 Branch Regions 19 Pre-discovered Areas 9 | . . . 1 . . . 1 . 1 . . 1 1 . . . . . . . . . 1 3 . . . . Known Exits Taken 22 | . . . . . . 1 1 1 1 1 1 1 1 1 1 1 1 1 1 1 1 1 1 1 1 1 1 . Unknown Exits Taken 6 | 1 1 1 1 1 1 . . . . . . . . . . . . . . . . . . . . . . . Scrap Searched 14 | . . . . . . . 1 2 . 1 . 2 . 4 . . . 1 . . . 1 2 . . . . . Spaces Dug 327 | . . . . . 1 96 3 . . 11 39 13 . . . 42 10 . 6 . 14 17 . . 3 40 7 25 Terrain Destroyed 423 | . . . . . 11 96 3 . . 11 39 13 . . . 45 10 . 6 . 14 17 . . 3 40 59 56 Melee 327 | . . . . . 1 96 3 . . 11 39 13 . . . 42 10 . 6 . 14 17 . . 3 40 7 25 Projectile 8 | . . . . . 8 . . . . . . . . . . . . . . . . . . . . . . . AOE 88 | . . . . . 2 . . . . . . . . . . 3 . . . . . . . . . . 52 31 Actions | -11 -10 -10 -10 -9 -8 -7 -7 -7 -7 -6 -6 -6 -6 -6 -5 -5 -5 -5 -5 -4 -4 -4 -4 -4 -3 -3 -2 -1 --------- Run | Scr Mat Min Exi Min Mat Fac Low Low Dat Pro Fac Low Low Zio Pro Fac Upp Upp War Pro Fac Upp Upp Zhi Pro Res Res Acc Total 23647 | 37 806 295 244 55 1845 4001 420 258 110 792 2202 554 260 673 351 2958 507 309 861 357 1606 439 237 244 165 1584 636 841 Wait 4816 | . 117 14 . 27 574 960 26 2 1 277 521 61 35 . 1 746 34 . 163 44 532 64 2 23 7 395 159 31 Move 17492 | 27 561 261 237 28 1059 2822 389 254 105 477 1574 476 225 657 350 2064 463 301 674 313 1014 357 233 194 155 1066 438 718 Hop 25 | . . . . . . 2 . . . . 1 . . . . 2 . . . . 2 . . . . 2 5 11 Pick Up 145 | 4 13 3 1 . 29 23 . 1 . 1 16 2 . 2 . 12 . 1 5 . 8 . . 3 . 11 3 7 Fast Attach 55 | 6 5 . 2 . 12 4 . . . 1 . . . . . 2 . 1 2 . 1 . . 7 . 1 2 9 Attach 48 | . 2 1 . . 3 10 1 . . 3 3 . . . . 3 . . . . 2 . 1 1 . 10 3 5 Detach 10 | . 2 . . . 2 1 . . . . . . . . . 1 . 1 . . . . . . . 1 1 1 Swap 78 | . 13 1 1 . 11 10 1 . 2 2 6 . . 5 . 8 . 1 2 . 3 . . 1 . 3 3 5 Drop 144 | . 10 3 3 . 40 20 . 1 . . 14 2 . 3 . 12 . 3 8 . 7 . 1 6 . 8 . 3 Fire 226 | . 83 12 . . 113 2 . . . 2 . . . . . 6 . . . . . . . . . . 5 3 Melee 585 | . . . . . 1 147 3 . 2 29 67 13 . 6 . 102 10 1 7 . 19 18 . 9 3 83 17 48 Ram 2 | . . . . . . . . . . . . . . . . . . . . . . . . . . 2 . . Kick 1 | . . . . . 1 . . . . . . . . . . . . . . . . . . . . . . . Crush . | . . . . . . . . . . . . . . . . . . . . . . . . . . . . . Escape Stasis 20 | . . . . . . . . . . . . . . . . . . . . . 18 . . . . 2 . . Rewire . | . . . . . . . . . . . . . . . . . . . . . . . . . . . . . Trap . | . . . . . . . . . . . . . . . . . . . . . . . . . . . . . Miscellaneous . | . . . . . . . . . . . . . . . . . . . . . . . . . . . . . Route ------- -11/Scrapyard -10/Materials (discovered 2 exits: [*Mat] / [*Min]) -10/Mines (discovered 2 exits: [*Mat] / *Exi) -10/Exiles -9/Mines -8/Materials -7/Factory (discovered 5 exits: Fac / *Sto x2 / *Low x2) -7/Lower Caves -7/Lower Caves -7/Data Miner -6/Proximity Caves -6/Factory (discovered 5 exits: *Fac x3 / *Low x2) -6/Lower Caves -6/Lower Caves (discovered 2 exits: *Fac / *Zio) -6/Zion -5/Proximity Caves -5/Factory (discovered 5 exits: *Fac / *Upp x2 / Ext x2) -5/Upper Caves -5/Upper Caves -5/Warlord -4/Proximity Caves -4/Factory (discovered 2 exits: *Upp x2) -4/Upper Caves -4/Upper Caves -4/Zhirov -3/Proximity Caves -3/Research (discovered 6 exits: *Res x3 / Arm / *Tes x2) -2/Research (discovered 3 exits: *Acc x3) -1/Access To Epsilon Eridani History --------- Turn | Location | Event 6 | -11/Scrapyard | Discovered new exit (range 16) 41 | -11/Scrapyard | Entered Materials 297 | -10/Materials | Discovered new exit (range 15) 306 | -10/Materials | Build established: Mutant 340 | -10/Materials | Discovered new exit (range 16) 574 | -10/Materials | Core integrity fell below 50% 1035 | -10/Materials | Entered Mines 1055 | -10/Mines | Build established: Hauler-Mutant 1162 | -10/Mines | Deemed a non-threat by the Exiles lab entrance 1282 | -10/Mines | Discovered new exit (range 12) 1445 | -10/Mines | Discovered new exit (range 5) 1451 | -10/Mines | Entered Exiles 1485 | -10/Exiles | Met 8R-AWN 1510 | -10/Exiles | Met EX-HEX 1586 | -10/Exiles | Met EX-BIN 1601 | -10/Exiles | Aligned with FarCom system 1603 | -10/Exiles | Given EX-Vault access code 1635 | -10/Exiles | Opened EX-Vault 1647 | -10/Exiles | Found Lightpack 2.0 1650 | -10/Exiles | Found Potential Leg 1653 | -10/Exiles | Found Potential Leg 1682 | -10/Exiles | Warned to stay clear of 0b10 Research branches 1721 | -10/Exiles | Met EX-DEC 1728 | -10/Exiles | Learned location of Zion (-6) 1765 | -10/Exiles | Discovered new exit (range 14) 1781 | -10/Exiles | Stole two prototypes: Potential Leg, Lightpack 2.0 1781 | -10/Exiles | Entered Mines 1840 | -9/Mines | Discovered new exit (range 5) 1845 | -9/Mines | Entered Materials 1845 | -8/Materials | Evolved 4 slots: Utility x4 4162 | -8/Materials | Discovered new exit (range 16) 4204 | -8/Materials | Entered Factory 4204 | -7/Factory | Evolved 2 slots: Utility x2 4206 | -7/Factory | FarCom data flow suspended 4325 | -7/Factory | Fabricated Hacking Suite (x1) 4401 | -7/Factory | Fabricated Hacking Suite (x1) 4475 | -7/Factory | Fabricated System Shield (x1) 4695 | -7/Factory | Build established: Hacker-Sprinter 5038 | -7/Factory | Discovered new exit (range 11) 5103 | -7/Factory | Identified exit to Storage 5103 | -7/Factory | Identified exit to Lower Caves 5204 | -7/Factory | Fabricated Imp. VTOL Module (x1) 5206 | -7/Factory | Local fabrication network quarantined 5263 | -7/Factory | Fabricated Imp. VTOL Module (x1) 6105 | -7/Factory | Discovered new exit (range 17) 6511 | -7/Factory | Entered Lower Caves 6635 | -7/Lower Caves | Learned Factory trap positions 6635 | -7/Lower Caves | Learned Research security intel 6635 | -7/Lower Caves | Learned Extension terminal intel 6635 | -7/Lower Caves | Learned Armory terminal intel 6667 | -7/Lower Caves | Discovered new exit (range 11) 6670 | -7/Lower Caves | Identified exit to Lower Caves 6670 | -7/Lower Caves | Entered another Lower Caves area 6680 | -7/Lower Caves | Encountered a Warlord checkpoint 6683 | -7/Lower Caves | Learned location of 1 exit from Factory 6745 | -7/Lower Caves | Discovered new exit (range 12) 6748 | -7/Lower Caves | Identified exit to Data Miner 6755 | -7/Lower Caves | Entered Data Miner 6755 | -7/Data Miner | Discovered new exit (range 6) 6762 | -7/Data Miner | Met Data Miner 6768 | -7/Data Miner | Learned location of Section 7 (-2) 6768 | -7/Data Miner | Acquired the access code to Warlord's prototype stash 6777 | -7/Data Miner | Received God Mode back door access code from Data Miner 6794 | -7/Data Miner | Data Conduit disabled 6797 | -7/Data Miner | Core integrity fell below 50% 6797 | -7/Data Miner | Identified exit to Proximity Caves 6797 | -7/Data Miner | Entered Proximity Caves 6892 | -6/Proximity Caves | Core integrity fell below 20% 6924 | -6/Proximity Caves | Lost 3 parts (1p1n1u) 7055 | -6/Proximity Caves | Attracted the attention of an 0b10 checkpoint 7127 | -6/Proximity Caves | Learned Factory garrison access intel 7167 | -6/Proximity Caves | Build established: Hacker-Mutant 7203 | -6/Proximity Caves | Learned Factory terminal intel 7318 | -6/Proximity Caves | Discovered new exit (range 5) 7320 | -6/Proximity Caves | Identified exit to Factory 7320 | -6/Proximity Caves | Entered Factory 7320 | -6/Factory | Evolved 2 slots: Utility x2 7321 | -6/Factory | Identified exit to Factory 7322 | -6/Factory | Loaded intel: 98 trap records 7323 | -6/Factory | Loaded intel: 20 terminal locations 7324 | -6/Factory | Loaded intel: 4 garrison access locations 7475 | -6/Factory | Fabricated Exp. Sensor Array (x1) 7552 | -6/Factory | Fabricated Exp. Sensor Array (x1) 7654 | -6/Factory | Identified exit to Lower Caves 7689 | -6/Factory | Fabricated Imp. VTOL Module (x1) 7715 | -6/Factory | Local fabrication network quarantined 7844 | -6/Factory | Discovered exit to Factory (range 8) 8460 | -6/Factory | Hacking Suite fried by hacking feedback 8545 | -6/Factory | Discovered exit to Factory (range 16) 8575 | -6/Factory | Entered Lower Caves 8818 | -6/Lower Caves | Found Alien Artifact 8830 | -6/Lower Caves | Discovered new exit (range 13) 8834 | -6/Lower Caves | Identified exit to Lower Caves 8834 | -6/Lower Caves | Entered another Lower Caves area 8845 | -6/Lower Caves | Discovered exit to Factory (range 7) 8890 | -6/Lower Caves | Attracted the attention of an 0b10 checkpoint 8921 | -6/Lower Caves | Spotted PI-8XP(f) 8925 | -6/Lower Caves | Encountered a Master Thief 8939 | -6/Lower Caves | Learned location of Extension (-5) 8944 | -6/Lower Caves | Discovered new exit (range 8) 8946 | -6/Lower Caves | Identified exit to Zion 8946 | -6/Lower Caves | Entered Zion 9023 | -6/Zion | Visited the Megawrench Repair Shop 9024 | -6/Zion | Megawrench repaired 4 parts 9039 | -6/Zion | Learned 4 Factory zone layouts 9185 | -6/Zion | Discovered new exit (range 10) 9188 | -6/Zion | Identified exit to Proximity Caves 9188 | -6/Zion | Entered Proximity Caves 9245 | -5/Proximity Caves | Spotted KP-7LJ(f) 9246 | -5/Proximity Caves | Encountered a Master Thief 9249 | -5/Proximity Caves | Spotted K7-THJ(f) 9250 | -5/Proximity Caves | Encountered a Master Thief 9278 | -5/Proximity Caves | Attracted the attention of an 0b10 checkpoint 9305 | -5/Proximity Caves | Discovered exit to Factory (range 14) 9309 | -5/Proximity Caves | Entered Factory 9309 | -5/Factory | Evolved 2 slots: Power x1, Utility x1 9310 | -5/Factory | Identified exit to Upper Caves 9488 | -5/Factory | Identified exit to Extension 9592 | -5/Factory | Build established: Wizard-Mutant 9642 | -5/Factory | Fabricated Adv. Hacking Suite (x1) 9697 | -5/Factory | Fabricated Adv. Hacking Suite (x1) 9752 | -5/Factory | Fabricated Adv. Hacking Suite (x1) 9872 | -5/Factory | Discovered new exit (range 16) 9991 | -5/Factory | Fabricated Adv. Transmission Jammer (x1) 10067 | -5/Factory | Fabricated Gravity Neutralizing Apparatus (x1) 10097 | -5/Factory | Local fabrication network quarantined 10106 | -5/Factory | Identified exit to Factory 10374 | -5/Factory | Build established: Wizard-Sprinter 11033 | -5/Factory | Entered Upper Caves 11215 | -5/Upper Caves | Encountered a Warlord checkpoint 11221 | -5/Upper Caves | Learned Factory interactive machine intel 11239 | -5/Upper Caves | Discovered new exit (range 5) 11240 | -5/Upper Caves | Identified exit to Upper Caves 11241 | -5/Upper Caves | Entered another Upper Caves area 11243 | -5/Upper Caves | Attracted the attention of an 0b10 checkpoint 11343 | -5/Upper Caves | Discovered new exit (range 6) 11344 | -5/Upper Caves | Identified exit to Warlord 11344 | -5/Upper Caves | Entered Warlord 11355 | -5/Warlord | System corruption cleaned by Quarantine Array 11449 | -5/Warlord | Received a Watcher feed algorithm from an ecstatic Tinkerer 11456 | -5/Warlord | Visited the Vortex Lab 11467 | -5/Warlord | Warlord's base attacked by MAIN.C 11510 | -5/Warlord | Found System Mapper 11512 | -5/Warlord | Found Prototype Processor 11522 | -5/Warlord | Found Prototype Processor 11526 | -5/Warlord | Found Prototype Reactor 11728 | -5/Warlord | Opened side exit 11734 | -5/Warlord | Discovered new exit (range 10) 11745 | -5/Warlord | Identified exit to Proximity Caves 11756 | -5/Warlord | Entered Proximity Caves 11896 | -4/Proximity Caves | Discovered exit to Factory (range 14) 11901 | -4/Proximity Caves | Entered Factory 11901 | -4/Factory | Evolved 2 slots: Utility x2 11902 | -4/Factory | Loaded intel: 46 interactive machine locations 11930 | -4/Factory | Central database locked down 12127 | -4/Factory | Fabricated Exp. Signal Interpreter? 12209 | -4/Factory | Fabricated Mni. Fusion Reactor? 12278 | -4/Factory | Fabricated Mni. Fusion Reactor (x1) 12309 | -4/Factory | Identified exit to Upper Caves 12330 | -4/Factory | Identified Core Expander 12433 | -4/Factory | Identified Exp. Target Analyzer 12433 | -4/Factory | Identified Exp. Targeting Computer 12433 | -4/Factory | Identified Vortex Chain Reactor 12559 | -4/Factory | Fabricated Adv. System Shield (x1) 12614 | -4/Factory | Fabricated Adv. System Shield (x1) 12615 | -4/Factory | Local fabrication network quarantined 12842 | -4/Factory | Entered Upper Caves 13062 | -4/Upper Caves | Discovered new exit (range 15) 13065 | -4/Upper Caves | Identified exit to Upper Caves 13066 | -4/Upper Caves | Entered another Upper Caves area 13093 | -4/Upper Caves | Spotted H0-B99(f) 13095 | -4/Upper Caves | Encountered a Master Thief 13104 | -4/Upper Caves | Spotted AF-VIY(f) 13105 | -4/Upper Caves | Encountered a Master Thief 13110 | -4/Upper Caves | Potential Leg stolen by Master Thief 13112 | -4/Upper Caves | P-70 Sage assimilated allied AF-VIY(f) 13141 | -4/Upper Caves | Discovered new exit (range 9) 13143 | -4/Upper Caves | Identified exit to Zhirov 13145 | -4/Upper Caves | Entered Zhirov 13145 | -4/Zhirov | Discovered new exit (range 3) 13151 | -4/Zhirov | Met Zhirov 13165 | -4/Zhirov | Learned location of Quarantine (-2) 13165 | -4/Zhirov | Learned location of Testing (-3) 13165 | -4/Zhirov | Learned location of Command (-1) 13171 | -4/Zhirov | Zhirov requested help retrieving the SGEMP Prototype 13176 | -4/Zhirov | Found Alien Artifact 13176 | -4/Zhirov | Identified Integrated Dissipator 13176 | -4/Zhirov | Installed Integrated Dissipator, increased core heat dissipation (+2%) 13183 | -4/Zhirov | Found Alien Artifact 13183 | -4/Zhirov | Identified Transdimensional Reconstructor 13183 | -4/Zhirov | Warped through subspace 13245 | -4/Zhirov | Identified exit to Proximity Caves 13268 | -4/Zhirov | Entered Proximity Caves 13330 | -3/Proximity Caves | Discovered new exit (range 8) 13332 | -3/Proximity Caves | Identified exit to Research 13333 | -3/Proximity Caves | Entered Research 13333 | -3/Research | Evolved 2 slots: Utility x2 13348 | -3/Research | Discovered new exit (range 16) 13374 | -3/Research | Identified exit to Testing 13390 | -3/Research | Identified exit to Armory 13777 | -3/Research | Found Enh. Force Lance 13810 | -3/Research | Fabricated Nanosword (x1) 13847 | -3/Research | Fabricated Nanosword? 13944 | -3/Research | Lost 3 parts (2u1w) 13997 | -3/Research | Found Exp. Signal Interpreter 14014 | -3/Research | Spotted B-86 Titan 14060 | -3/Research | Crushed by falling debris 14218 | -3/Research | Lost 4 parts (1p3u) 14270 | -3/Research | System corruption reached 10% 14271 | -3/Research | Crushed by falling debris 14294 | -3/Research | Identified exit to Research 14308 | -3/Research | Lost 5 parts (1p1n3u) 14315 | -3/Research | Entered another Research area 14315 | -2/Research | Evolved 2 slots: Propulsion x2 14339 | -2/Research | Spotted B-90 Cyclops 14404 | -2/Research | Identified exit to Access 14674 | -2/Research | Entered Access 14674 | -1/Access | Evolved 2 slots: Utility x2 14677 | -1/Access | Lost 3 parts (1p2u) 14733 | -1/Access | Installed Core Expander, added new Propulsion slot 14774 | -1/Access | Identified exit to Surface 14869 | -1/Access | Spotted B-99 Colossus 14931 | -1/Access | Energy Cycler disabled 14990 | -1/Access | Spotted B-99 Colossus 15056 | *** | Escaped! Last Messages --------------- Purged threat record, alert level lowered. 15042_ Drone signal jammed. 15044_ S-43 Plague destroyed. 15044_ Drone signal jammed. 15046_ Destroyed Xenon Bombardment Thruster. 15046_ S-43 Plague destroyed. 15046_ U-05 Engineer lays Concrete. 15046_ Drone signal jammed. 15048_ U-05 Engineer builds a Wall. 15048_ W-44 Eye sends out distress signal. 15048_ Drone signal jammed. 15049_ The unstable cave ceiling collapses. 15049_ Drone signal jammed. 15049_ Drone destroyed. 15050_ Penetrated by Slug. 15050_ Adv. Hacking Suite destroyed. 15052_ U-05 Engineer lays Concrete. 15052_ Acquired 15 matter. 15053_ U-05 Engineer lays Concrete. 15055_ The Access Shell folds into the floor. Map ----- +----------------------------------------------------+ | ?????????????????????????????????????????????????? | | ?????????????????????????????????????????????????? | | ?????????????????????????????????????????????????? | | ?????????????????????????????????????????????????? | | ?????????????????????????????????????????????????? | | ?????????????????????????????????????????????????? | | ?????????????????????????????????????????????????? | | ?????????????????????????????????????????????????? | | ?????????????????????????????????????????????????? | | ?????????????????????????????????????????????????? | | ??????????? ?????????????????????????????????????? | | ??????????? ????????????????????????????????????? | | ??????????# ????????????????????????????????????? | | ??????????# ????????????????????????????????????? | | ??????????/ ????????????????????????????????????? | | ??????????# ????????????????????????????????????? | | ??????????# ????????????????????????????????????? | | ??????????# ????????????????????????????????????? | | ??????????# #?????###???????????????????????????? | | ??????????# ####### ##########??????????????????? | | ??????????# """T""" "??????????????????? | | ??????????# """ """ "??????????????????? | | ??????????# "??????????????????? | | ??????????# w "??????????????????? | | ??????##??# "" "??????????????????? | | ######"#??# @" "??????????????????? | | = #???# "??????????????????? | | = #???# "??????????????????? | | ! #???# "??????????????????? | | #???# "??????????????????? | | ! =#???# ####### ##########??????????????????? | | ##??# #?????###???????????????????????????? | | ######"####! #???????????????????????????????????? | | # # *#???????????????????????????????????? | | # #= #???????????????????????????????????? | | # / #???????????????????????????????????? | | # # #???????????????????????????????????? | | # ???????????????????????????????????? | | # [ ??????????????????????????????????? | | # [ ?????????????????????????????????? | | # %=# ?????????????????????????????????? | | ######### ????????????????????????????????? | | ?? % ???????????????????????????????? | | ?? """??????????????????????????????? | | " """"" # """??????????????????????????????? | | " """"" # # """"?????????????????????????????? | | " """"" # # ""???????????????????????????????? | | """"" # # ""???????????????????????????????? | | " """"" # #####???????????????????????????????? | | " """"" # #???????????????????????????????????? | +----------------------------------------------------+ Best States ------------- Heat Dissipation 72 Energy Generation 55 Energy Capacity 700 Matter Stores 300 Matter Capacity 300 Sight Range 20 Robot Scan Range 30 Terrain Scan Density 210 Jamming Range 16 Additional Mass Support 21 Armor Coverage 225 Resistance: KI 30 Resistance: TH 10 Core Shielding 20 Weapon Shielding 33 Evasion (%) 75 Targeting Accuracy 8 Melee Accuracy 6 Target Analysis 8 Recoil Reduction 1 Stasis Canceling 2 Offensive Hacking 76 Defensive Hacking 28 Item Schematics ----------------- Imp. VTOL Module | -8/Materials | Scanalyzed Hacking Suite | -8/Materials | Hacked System Shield | -8/Materials | Hacked Adv. Sensor Array | -7/Factory | Hacked Exp. Sensor Array | -7/Data Miner | Free Kinetic Spear | -7/Data Miner | Free Lgt. Regenerative Plating | -7/Data Miner | Free Imp. System Shield | -6/Factory | Hacked Adv. Hacking Suite | -6/Factory | Hacked Cld. Cesium-ion Thruster | -6/Factory | Scanalyzed Adv. System Shield | -6/Factory | Hacked Fusion Compressor | -6/Factory | Hacked Exp. Utility Shielding | -6/Factory | Hacked Gravity Neutralizing Apparatus | -5/Factory | Hacked Adv. Transmission Jammer | -5/Factory | Hacked Adv. Armor Integrity Analyzer | -5/Factory | Hacked Exp. Signal Interpreter | -5/Factory | Hacked Mni. Fusion Reactor | -4/Factory | Hacked Cld. Impulse Thruster | -4/Factory | Scanalyzed Exp. Target Analyzer | -4/Factory | Scanalyzed Exp. Targeting Computer | -4/Factory | Scanalyzed Vortex Chain Reactor | -4/Factory | Scanalyzed Assault Drone Bay | -4/Zhirov | Free Exp. Heat Sink | -4/Zhirov | Free Exp. Optical Array | -4/Zhirov | Free Imp. Arc Thrower | -4/Zhirov | Free Exp. Melee Analysis Suite | -3/Research | Hacked Imp. Fusion Compressor | -3/Research | Hacked Nanosword | -3/Research | Hacked Quantum Shading Machine | -3/Research | Hacked Cld. Field Propulsion Drive | -3/Research | Scanalyzed Robot Schematics ------------------ None Fabricated ------------ Hacking Suite | x1 | -7/Factory Hacking Suite | x1 | -7/Factory System Shield | x1 | -7/Factory Imp. VTOL Module | x1 | -7/Factory Imp. VTOL Module | x1 | -7/Factory Exp. Sensor Array | x1 | -6/Factory Exp. Sensor Array | x1 | -6/Factory Imp. VTOL Module | x1 | -6/Factory Adv. Hacking Suite | x1 | -5/Factory Adv. Hacking Suite | x1 | -5/Factory Adv. Hacking Suite | x1 | -5/Factory Adv. Transmission Jammer | x1 | -5/Factory Gravity Neutralizing Apparatus | x1 | -5/Factory Exp. Signal Interpreter | x1 | -4/Factory Mni. Fusion Reactor | x1 | -4/Factory Mni. Fusion Reactor | x1 | -4/Factory Adv. System Shield | x1 | -4/Factory Adv. System Shield | x1 | -4/Factory Nanosword | x1 | -3/Research Nanosword | x1 | -3/Research Alien Tech Used ----------------- Integrated Dissipator Transdimensional Reconstructor Core Expander Achievements -------------- None Challenges ------------ None Game ------ Seed FluxGrenadeConverter Manual? 0 Play Time 02:44:44 Cumulative 758.4 hours Start 2020.04.16 @ 13:34:48 End 2020.04.16 @ 17:22:21 Sessions 3 Manual Loads 0 Difficulty Rogue Special Mode None Game No. 667 Rogue 627 Adventurer 40 Explorer 0 Win Type 0 Total 68 Types 49/2/14/2/0/0/1 Lore% 92 Gallery% 94 Achievement% 75 Wizard Run 0 Options --------- ASCII 0 Keyboard 0 Movement Numpad Keybinds 0 Fullscreen 0 Font 16/Terminus Map View 76x50 Tactical HUD 1 Map Filters NONE Filters NONE Steam 1 RUN: d6ab91ea-7948-4385-9d74-278ff5b8619c